{"text_format":"1","workbook":"xlsx","n_sheets":1,"sheets":["Feuil1"],"not_rendered":{"charts":0,"images":0,"macros":1,"external_links":0,"defined_names":0,"comments":0,"pivot_tables":0},"unopened":[],"bounds":{"document_bytes":16777216,"sheet_cells":100000,"rows_first":2000,"rows_last":500,"rows_between":2000,"halvings":0,"cell_chars":16384,"cell_head_chars":4096},"cells_cut":0,"cells_raw":0,"read":"whole","date_system":"1900"}

{"sheet":"Feuil1","index":0,"n_rows":39,"n_cols":2,"rows_kept":39,"cut":false,"hidden":false,"merged":[]}
[13474,{"$f":"ConvNumberLetter(A1)","v":"treize mille quatre cent septante-quatre Euros zéro centime"}]
[75.45,{"$f":"ConvNumberLetter(A2)","v":"septante-cinq Euros quarante-cinq centimes"}]
[82,"quatre-vingt-deux Euros zéro centime"]
[185284,"cent quatre-vingt-cinq mille deux cent quatre-vingt-quatre Euros zéro centime"]
[4,"quatre Euros zéro centime"]
[5,"cinq Euros zéro centime"]
[6,"six Euros zéro centime"]
[7,"sept Euros zéro centime"]
[8,"huit Euros zéro centime"]
[9,"neuf Euros zéro centime"]
[10,"dix Euros zéro centime"]
[11,"onze Euros zéro centime"]
[12,"douze Euros zéro centime"]
[13,"treize Euros zéro centime"]
[14,"quatorze Euros zéro centime"]
[15,"quinze Euros zéro centime"]
[16,"seize Euros zéro centime"]
[17,"dix-sept Euros zéro centime"]
[18,"dix-huit Euros zéro centime"]
[19,"dix-neuf Euros zéro centime"]
[20,"vingt Euros zéro centime"]
[21,"vingt et un Euros zéro centime"]
[22,"vingt-deux Euros zéro centime"]
[175294.93,"cent septante-cinq mille deux cent nonante-quatre Euros nonante-trois centimes"]
[24,"vingt-quatre Euros zéro centime"]
[25,"vingt-cinq Euros zéro centime"]
[26,"vingt-six Euros zéro centime"]
[27,"vingt-sept Euros zéro centime"]
[28,"vingt-huit Euros zéro centime"]
[29,"vingt-neuf Euros zéro centime"]
[30,"trente Euros zéro centime"]
[1510,"mille cinq cent dix Euros zéro centime"]
[1539,"mille cinq cent trente-neuf Euros zéro centime"]
[1568,"mille cinq cent soixante-huit Euros zéro centime"]
[1597,"mille cinq cent nonante-sept Euros zéro centime"]
[1626,"mille six cent vingt-six Euros zéro centime"]
[1655,"mille six cent cinquante-cinq Euros zéro centime"]
[1684,"mille six cent quatre-vingt-quatre Euros zéro centime"]
[1713,"mille sept cent treize Euros zéro centime"]